bitfinex/quotes_SOLUSD_20250814
["timestamp","ask_amount","ask_price","bid_price","bid_amount"]
[1755150674267,15.10621557,206.53,206.52,36.06]
[1755150674437,15.10621557,206.53,206.52,36.04]
[1755150675934,9.51175064,206.58,206.52,45.55175064]
[1755150676287,18.59187212,206.57,206.54,9.51175064]
[1755150676557,15.10621557,206.54,206.48,69.63]
[1755150676766,3.48565655,206.53,206.49,36.0]
[1755150676954,3.48565655,206.53,206.49,45.51175064]
[1755150677569,3.48565655,206.53,206.5,9.51175064]
[1755150677731,3.48565655,206.53,206.51,45.51175064]
[1755150677936,3.48565655,206.53,206.5,9.51175064]
[1755150678130,3.48565655,206.53,206.51,35.98]
[1755150678532,3.48565655,206.53,206.52,35.98]
[1755150681154,0.69,206.56,206.52,35.98]
[1755150681155,0.69,206.63,206.52,45.52175064]
[1755150681481,3.55924338,206.62,206.59,9.51175064]
[1755150681658,3.49924338,206.61,206.6,35.9]
[1755150681856,18.60545895,206.61,206.6,35.9]
[1755150682668,3.49924338,206.61,206.6,35.9]
[1755150683163,0.03,206.62,206.6,45.44175064]
[1755150683363,0.03,206.62,206.61,9.51175064]
[1755150684142,0.03,206.62,206.61,14.35178742]
[1755150684968,0.03,206.62,206.61,83.95178742]
[1755150688074,0.06,206.73,206.68,26.0]
[1755150688257,0.06,206.73,206.72,9.51175064]
[1755150688576,0.06,206.73,206.72,45.27175064]
[1755150689966,0.06,206.73,206.72,35.76]
[1755150690183,0.06,206.73,206.72,45.27175064]
[1755150691081,0.06,206.73,206.72,35.76]
[1755150691287,0.71,206.73,206.72,35.76]
[1755150691468,0.71,206.73,206.72,45.27175064]
[1755150691663,0.06,206.73,206.72,54.78350128]
[1755150691977,0.06,206.73,206.72,50.10921194]
[1755150692756,0.06,206.73,206.72,45.27175064]
[1755150692954,0.06,206.73,206.72,9.51175064]
[1755150693185,0.71,206.73,206.7,9.51175064]
[1755150693362,0.71,206.73,206.49,0.03]
[1755150693363,0.06,206.73,206.72,9.51175064]
[1755150693560,0.06,206.76,206.74,41.10621557]
[1755150693768,0.06,206.78,206.76,10.0]
[1755150693975,0.06,206.78,206.77,50.22804217]
[1755150694290,0.06,206.78,206.77,14.34804217]
[1755150694454,0.06,206.78,206.77,35.9]
[1755150694873,0.06,206.78,206.77,45.41175064]
[1755150695094,0.06,206.78,206.77,105.46]
[1755150695273,0.06,206.78,206.77,114.97175064]
[1755150695982,0.71,206.78,206.77,105.46]
[1755150696292,25.32796621,206.78,206.77,69.56]
[1755150696587,0.71,206.78,206.77,34.78]
[1755150696794,0.71,206.78,206.77,44.29175064]
[1755150697180,0.71,206.78,206.77,34.78]
[1755150697578,0.71,206.78,206.77,70.7]
[1755150698258,0.71,206.78,206.77,45.43175064]
[1755150698259,0.06,206.78,206.77,45.43175064]
[1755150698958,1e-08,206.78,206.77,45.43175064]
[1755150699762,1e-08,206.78,206.77,50.26804217]
[1755150703168,0.06,206.8,206.79,9.51175064]
[1755150703389,0.06,206.8,206.79,45.35175064]
[1755150704392,0.06,206.8,206.79,50.18757442]
[1755150704898,0.71,206.8,206.78,9.51175064]
[1755150705084,36.22175064,206.8,206.79,69.52]
[1755150705390,26.71,206.8,206.79,70.6]
[1755150706798,41.81621557,206.8,206.79,70.6]
[1755150707784,54.78753235,206.8,206.79,34.76]
[1755150707985,54.78753235,206.8,206.63,0.03]
[1755150707986,26.0,206.76,206.67,9.51175064]
[1755150708310,9.51175064,206.72,206.68,35.84]
[1755150708504,0.06,206.8,206.69,9.51175064]
[1755150708681,0.65,206.74,206.7,35.84]
[1755150708998,9.51175064,206.72,206.71,35.84]
[1755150709223,10.16175064,206.72,206.71,35.82]
[1755150709498,10.16175064,206.72,206.71,35.85]
[1755150709796,0.65,206.72,206.71,35.85]
[1755150710101,26.65,206.72,206.71,35.85]
[1755150710313,51.26796621,206.72,206.71,0.03]
[1755150710604,15.10621557,206.67,206.63,0.03]
[1755150710802,10.16175064,206.66,206.64,35.82]
[1755150711105,0.65,206.65,206.64,35.82]
[1755150711403,54.73718716,206.65,206.64,35.82]
[1755150714713,54.73718716,206.65,206.63,0.03]
[1755150714714,15.10621557,206.64,206.63,0.03]
[1755150714887,26.0,206.57,206.5,9.51175064]
[1755150715092,36.16175064,206.57,206.56,34.78]
[1755150715291,0.65,206.57,206.56,34.78]
[1755150715693,36.16175064,206.57,206.56,34.78]
[1755150715903,26.65,206.57,206.56,70.56]
[1755150716104,36.16175064,206.57,206.56,70.56]
[1755150716610,0.65,206.64,206.56,80.13175064]
[1755150716815,15.10621557,206.63,206.59,9.51175064]
[1755150717114,26.0,206.61,206.6,35.78]
[1755150717915,15.75621557,206.63,206.6,35.78]
[1755150718283,0.65,206.63,206.6,35.78]
[1755150718508,10.16175064,206.63,206.6,35.78]
[1755150718799,0.65,206.63,206.6,35.78]
[1755150719409,26.0,206.61,206.6,35.78]
[1755150719608,15.10621557,206.6,206.56,34.78]
[1755150719812,9.51175064,206.57,206.56,34.78]
[1755150720109,10.16175064,206.57,206.56,70.54]
[1755150720310,28.74901084,206.57,206.56,70.54]
[1755150721512,39.64279527,206.57,206.56,70.54]
[1755150722813,24.61796621,206.63,206.56,80.05175064]
[1755150723108,3.48421889,206.62,206.57,9.51175064]
[1755150723413,26.0,206.59,206.56,70.54]
[1755150723583,26.0,206.58,206.56,70.54]
[1755150724087,10.17175064,206.57,206.56,34.78]
[1755150724307,10.17175064,206.57,206.56,70.56]
[1755150724711,10.17175064,206.57,206.56,34.78]
[1755150724909,10.17175064,206.57,206.56,70.56]
[1755150725291,25.27796621,206.57,206.56,70.56]
[1755150725611,28.7656875,206.57,206.56,70.56]
[1755150726193,26.0,206.54,206.51,34.78]
[1755150726395,9.51175064,206.52,206.51,34.78]
[1755150726613,35.51175064,206.54,206.51,34.78]
[1755150726919,25.27796621,206.52,206.51,34.78]
[1755150727089,28.7665653,206.52,206.51,34.78]
[1755150727482,28.7665653,206.52,206.51,34.8]
[1755150728005,24.61796621,206.53,206.51,34.8]
[1755150728213,51.27796621,206.52,206.51,34.8]
[1755150728597,79.1,206.61,206.51,34.8]
[1755150728906,15.10621557,206.55,206.52,35.78]
[1755150729115,26.0,206.53,206.52,35.78]
[1755150729294,26.0,206.53,206.51,34.8]
[1755150729295,15.10621557,206.52,206.51,34.8]
[1755150729497,25.27796621,206.52,206.51,70.58]
[1755150730089,28.76665135,206.52,206.49,0.03]
[1755150730321,9.51175064,206.5,206.49,0.03]
[1755150730520,25.27796621,206.5,206.49,0.03]
[1755150730816,41.10621557,206.5,206.49,0.03]
[1755150731515,41.10621557,206.5,206.49,35.87]
[1755150731908,9.51175064,206.51,206.49,35.87]
[1755150732225,15.76621557,206.5,206.49,35.87]
[1755150732597,15.10621557,206.5,206.49,35.87]
[1755150732919,25.27796621,206.5,206.49,35.87]
[1755150733135,15.76621557,206.5,206.49,35.87]
[1755150733425,133.4,206.59,206.49,35.87]
[1755150733629,41.10621557,206.5,206.49,35.87]
[1755150733831,41.76621557,206.5,206.49,35.87]
[1755150734346,41.10621557,206.5,206.49,35.87]
[1755150735016,26.0,206.53,206.49,114.98175064]
[1755150735215,41.10621557,206.5,206.49,69.63]
[1755150735514,120.86621557,206.5,206.49,105.47]
[1755150736830,105.1,206.5,206.49,105.47]
[1755150737625,15.10621557,206.55,206.49,119.88460017]
[1755150737810,15.10621557,206.55,206.51,9.51175064]
[1755150738126,41.10621557,206.53,206.52,35.82]
[1755150738515,41.76621557,206.53,206.52,35.82]
[1755150738713,51.27796621,206.53,206.52,35.82]
[1755150739020,41.10621557,206.5,206.49,69.63]
[1755150739219,51.27796621,206.5,206.49,105.45]
[1755150739828,15.10621557,206.49,206.48,0.03]
[1755150740130,25.27796621,206.49,206.48,34.83]
[1755150740436,104.37796621,206.49,206.48,34.83]
[1755150740833,94.86621557,206.49,206.48,34.83]
[1755150741027,104.37796621,206.49,206.48,70.65]
[1755150741531,104.37796621,206.49,206.48,34.83]
[1755150741708,107.85806162,206.49,206.48,70.65]
[1755150742526,97.68631098,206.49,206.48,70.65]
[1755150742733,94.20621557,206.49,206.48,70.65]
[1755150743126,26.0,206.49,206.48,70.65]
[1755150743322,41.10621557,206.49,206.48,70.65]
[1755150743538,41.10621557,206.49,206.47,0.03]
[1755150743539,54.7574083,206.49,206.47,0.03]
[1755150743856,15.10621557,206.45,206.44,0.03]
[1755150744154,15.10621557,206.45,206.43,0.03]
[1755150744155,28.75719666,206.45,206.43,0.03]
[1755150744311,24.61796621,206.42,206.35,0.2]
[1755150744516,41.10621557,206.41,206.35,0.2]
[1755150744740,50.61796621,206.36,206.35,0.2]
[1755150745135,25.27796621,206.36,206.35,35.02]
[1755150745522,28.7564057,206.36,206.35,71.52]
[1755150745744,25.27796621,206.36,206.35,71.52]
[1755150745925,28.75785866,206.36,206.35,35.02]
[1755150746235,28.75785866,206.36,206.35,71.52]
[1755150747912,28.09785866,206.36,206.35,71.52]
[1755150748237,28.75785866,206.36,206.35,71.52]
[1755150748755,28.75785866,206.36,206.32,35.02]
[1755150748756,41.10621557,206.33,206.32,35.02]
[1755150748954,54.09785866,206.33,206.32,69.84]
[1755150749110,54.75785866,206.33,206.32,69.84]
[1755150749442,59.161608,206.33,206.32,69.84]
[1755150749642,41.10621557,206.29,206.27,0.2]
[1755150749840,13.65164309,206.28,206.27,0.2]
[1755150750164,3.47989245,206.28,206.27,36.68]
[1755150750447,26.0,206.29,206.27,46.86175064]
[1755150750626,3.47989245,206.28,206.27,41.52801473]
[1755150750822,28.09785866,206.34,206.27,46.19175064]
[1755150751030,15.10621557,206.28,206.27,36.68]
[1755150751243,18.58610802,206.28,206.27,36.68]
[1755150751456,3.47989245,206.28,206.27,36.68]
[1755150751775,29.47989245,206.28,206.27,46.86175064]
[1755150752120,29.47989245,206.28,206.27,36.68]
[1755150752321,44.58610802,206.28,206.27,36.68]
[1755150752843,3.47989245,206.28,206.27,46.86175064]
[1755150753221,3.47989245,206.28,206.27,51.70976537]
[1755150753725,3.47989245,206.28,206.27,46.86175064]
[1755150754043,3.47989245,206.28,206.27,36.68]
[1755150754246,18.58610802,206.28,206.27,36.6]
[1755150754540,3.47989245,206.28,206.27,36.6]
[1755150754914,3.47989245,206.28,206.27,81.62175064]
[1755150755130,3.47989245,206.28,206.27,121.30976537]
[1755150756146,15.10621557,206.36,206.27,121.30976537]
[1755150756336,3.49872035,206.35,206.28,0.67]
[1755150756524,3.22771017,206.4,206.28,0.67]
[1755150756525,3.49872035,206.34,206.28,0.67]
[1755150756728,3.49872035,206.33,206.28,0.67]
[1755150756953,3.49872035,206.32,206.29,4.84754471]
[1755150757143,15.10621557,206.41,206.3,36.99]
[1755150757452,10.0,206.54,206.3,36.99]
[1755150757453,3.50289936,206.4,206.31,0.67]
[1755150757656,3.50384233,206.39,206.31,0.67]
[1755150757949,3.50384233,206.38,206.31,0.67]
[1755150758155,3.50384233,206.37,206.35,9.51175064]
[1755150758346,26.0,206.38,206.36,36.3]
[1755150758545,3.50504905,206.37,206.36,9.51175064]
[1755150758759,3.50504905,206.37,206.36,45.81175064]
[1755150759131,3.50504905,206.37,206.36,36.3]
[1755150759327,4.21504905,206.37,206.28,4.84772306]
[1755150759550,9.51175064,206.35,206.27,35.71]
[1755150759756,3.50504905,206.34,206.3,9.51175064]
[1755150759932,3.50504905,206.33,206.3,0.67]
[1755150760127,3.50504905,206.32,206.3,9.51175064]
[1755150760433,10.22175064,206.36,206.3,9.51175064]
[1755150760434,3.50504905,206.31,206.3,9.51175064]
[1755150760755,3.50504905,206.31,206.3,45.91175064]
[1755150761129,26.0,206.35,206.3,45.91175064]
[1755150761375,3.48289656,206.34,206.31,0.67]
[1755150761535,26.0,206.39,206.33,9.51175064]
[1755150761872,26.0,206.39,206.34,36.36]
[1755150761873,26.0,206.37,206.34,36.36]
[1755150762070,24.61796621,206.35,206.34,36.36]
[1755150762274,28.80896028,206.35,206.34,36.36]
[1755150762634,28.80896028,206.35,206.28,14.35929657]
[1755150762854,3.48099407,206.34,206.29,9.51175064]
[1755150763074,3.48099407,206.33,206.3,36.34]
[1755150763265,3.48099407,206.32,206.3,36.34]
[1755150763451,15.81621557,206.35,206.3,36.34]
[1755150763780,3.47401247,206.34,206.3,36.34]
[1755150763981,3.47401247,206.34,206.3,45.85175064]
[1755150764178,3.47401247,206.34,206.31,9.51175064]
[1755150764351,3.47401247,206.34,206.3,41.85728701]
[1755150764352,3.47401247,206.34,206.33,9.51175064]
[1755150764552,15.10621557,206.4,206.33,9.51175064]
[1755150764751,15.10621557,206.4,206.32,0.67]
[1755150764752,26.0,206.37,206.34,45.81175064]
[1755150764970,3.48685146,206.36,206.35,74.5261352]
[1755150765149,0.71,206.41,206.35,84.70788584]
[1755150765485,3.48990324,206.4,206.36,9.51175064]
[1755150765691,3.48990324,206.4,206.37,9.51175064]
[1755150765987,29.48990324,206.4,206.38,36.26]
[1755150766188,26.0,206.4,206.38,36.26]
[1755150766557,4.20187594,206.39,206.38,36.26]
[1755150766866,4.20187594,206.39,206.35,69.68]
[1755150766867,19.30809151,206.39,206.35,69.68]
[1755150767064,3.49245284,206.38,206.36,36.24]
[1755150767260,0.71,206.39,206.36,36.24]
[1755150767461,3.49360231,206.38,206.36,36.24]
[1755150767744,4.20360231,206.38,206.36,36.24]
[1755150767949,0.71,206.37,206.36,36.24]
[1755150768170,4.20363202,206.37,206.36,36.24]
[1755150768370,30.20363202,206.37,206.36,36.24]
[1755150768573,26.0,206.4,206.36,45.75175064]
[1755150768757,29.49664261,206.39,206.36,50.59764081]
[1755150768965,26.0,206.39,206.36,50.59764081]
[1755150769276,26.0,206.39,206.37,9.51175064]
[1755150769480,0.71,206.47,206.38,9.51175064]
[1755150769785,0.71,206.47,206.37,0.67]
[1755150769786,3.49782189,206.46,206.42,9.51175064]
[1755150769955,4.20782189,206.46,206.43,36.18]
[1755150770157,3.49782189,206.45,206.43,36.18]
[1755150770359,29.49782189,206.45,206.43,36.18]
[1755150770567,3.55782189,206.44,206.43,36.18]
[1755150770767,0.06,206.44,206.43,36.18]
[1755150771084,3.55782189,206.44,206.43,36.18]
[1755150771981,26.0,206.4,206.35,69.68]
[1755150772165,26.0,206.4,206.36,36.12]
[1755150772360,26.0,206.4,206.36,45.63175064]
[1755150772769,26.0,206.4,206.36,36.12]
[1755150773077,13.72491499,206.39,206.35,69.68]
[1755150773282,13.72547464,206.38,206.36,36.1]
[1755150773486,26.0,206.38,206.36,36.1]
[1755150773783,0.77,206.44,206.37,9.51175064]
[1755150773988,0.06,206.44,206.42,9.51175064]
[1755150774181,0.06,206.44,206.43,36.08]
[1755150774654,0.06,206.44,206.43,46.26175064]
[1755150774854,1e-08,206.44,206.43,46.26175064]
[1755150775252,0.06,206.46,206.43,46.26175064]
[1755150775253,1e-08,206.46,206.43,46.26175064]
[1755150775453,0.71,206.62,206.45,9.51175064]
[1755150775677,3.50832736,206.61,206.58,9.51175064]
[1755150775878,0.71,206.6,206.59,70.9]
[1755150776081,4.21832736,206.6,206.59,70.9]
[1755150776394,3.50832736,206.6,206.59,70.9]
[1755150776578,0.06,206.63,206.59,70.9]
[1755150776579,0.77,206.63,206.59,70.9]
[1755150776756,26.0,206.6,206.59,70.9]
[1755150776956,0.06,206.63,206.59,70.9]
[1755150776957,0.06,206.63,206.59,80.41175064]
[1755150777264,0.71,206.62,206.59,70.9]
[1755150777467,3.50403398,206.61,206.59,70.9]
[1755150777855,26.71,206.6,206.59,34.84]
[1755150778076,39.7262066,206.6,206.59,70.86]
[1755150778671,54.83242217,206.6,206.59,70.84]
[1755150780386,0.06,206.63,206.59,80.35175064]
[1755150780566,3.56288152,206.63,206.59,80.35175064]
[1755150780766,0.69,206.62,206.59,70.84]
[1755150782802,0.06,206.63,206.61,9.51175064]
[1755150782968,0.06,206.63,206.62,46.10175064]
[1755150783501,0.06,206.63,206.62,45.41175064]
[1755150783667,0.06,206.63,206.62,36.59]
[1755150783868,0.06,206.63,206.62,45.41175064]
[1755150784087,0.06,206.63,206.62,35.9]
[1755150784289,26.06,206.63,206.62,35.9]
[1755150784686,0.06,206.63,206.62,45.41175064]
[1755150784978,0.06,206.63,206.62,115.01175064]
[1755150785483,0.06,206.63,206.62,105.5]
[1755150785697,26.06,206.63,206.62,105.5]
[1755150786205,0.06,206.63,206.62,115.01175064]
[1755150786565,0.06,206.63,206.62,115.70175064]
[1755150786771,0.06,206.63,206.62,115.01175064]
[1755150787014,0.06,206.63,206.62,115.70175064]
[1755150789794,0.06,206.63,206.62,85.74155317]
[1755150790104,0.06,206.63,206.62,50.94155317]
[1755150790267,0.2,206.65,206.62,50.94155317]
[1755150790471,0.2,206.65,206.64,9.51175064]
[1755150790676,0.06,206.68,206.64,46.04175064]
[1755150790899,0.06,206.68,206.67,9.51175064]
[1755150791094,0.06,206.68,206.67,46.04175064]
[1755150791292,0.06,206.68,206.67,61.14796621]
[1755150791594,0.06,206.7,206.69,14.34991407]
[1755150791788,0.06,206.8,206.79,9.51175064]
[1755150791993,0.06,206.8,206.79,45.37175064]
[1755150792194,0.06,206.8,206.78,9.51175064]
[1755150792398,0.69,206.79,206.7,0.69]
[1755150792709,26.0,206.76,206.72,9.51175064]
[1755150792884,0.69,206.79,206.75,9.51175064]
[1755150793201,0.06,206.8,206.76,9.51175064]
[1755150793384,0.75,206.8,206.77,35.86]
[1755150793590,0.06,206.8,206.77,45.37175064]
[1755150793977,0.75,206.8,206.77,35.86]
[1755150794183,0.69,206.79,206.77,35.86]
[1755150794376,0.06,206.8,206.75,9.51175064]
[1755150794578,0.06,206.8,206.73,4.83720833]
[1755150794579,26.0,206.77,206.76,35.86]
[1755150794999,26.69,206.77,206.76,105.42]
[1755150795178,26.0,206.78,206.76,105.42]
[1755150795379,0.06,206.8,206.76,114.93175064]
[1755150795580,0.06,206.8,206.76,105.42]
[1755150795806,0.69,206.79,206.76,105.42]
[1755150796402,26.0,206.77,206.76,105.42]
[1755150796610,10.20175064,206.77,206.76,69.56]
[1755150796906,26.0,206.73,206.72,34.78]
[1755150797112,0.69,206.76,206.72,69.56]
[1755150797296,35.51175064,206.73,206.72,69.56]
[1755150797477,26.0,206.73,206.72,69.56]
[1755150797680,26.0,206.74,206.72,69.56]
[1755150798012,26.0,206.73,206.72,69.56]
[1755150798183,26.0,206.73,206.72,105.46]
[1755150798687,25.30796621,206.73,206.72,35.9]
[1755150799230,26.0,206.69,206.58,0.69]
[1755150799394,9.51175064,206.62,206.55,0.69]
[1755150799590,35.51175064,206.62,206.55,10.20175064]
[1755150799903,26.0,206.62,206.59,9.51175064]
[1755150800108,26.0,206.64,206.6,9.51175064]
[1755150800411,26.0,206.63,206.6,9.51175064]
[1755150800710,26.0,206.63,206.61,35.94]
[1755150800889,26.69,206.68,206.62,9.51175064]
[1755150801090,26.0,206.64,206.61,45.45175064]
[1755150801693,9.51175064,206.67,206.61,45.45175064]
[1755150801898,26.0,206.64,206.61,45.45175064]
[1755150802103,60.0,206.63,206.61,50.29172461]
[1755150802307,60.0,206.63,206.62,9.51175064]
[1755150802482,60.0,206.63,206.62,10.20175064]
[1755150804104,60.0,206.63,206.62,15.04155317]
[1755150804530,35.81755624,206.63,206.62,30.14776874]
[1755150804682,0.69,206.78,206.63,15.10621557]
[1755150805022,0.69,206.78,206.74,9.51175064]
[1755150805208,26.0,206.77,206.75,35.94]
[1755150805392,26.69,206.77,206.76,35.96]
[1755150805587,0.69,206.77,206.76,35.96]
[1755150805811,0.06,206.8,206.76,45.47175064]
[1755150806011,0.06,206.8,206.77,4.83629153]
[1755150806332,0.06,206.8,206.79,9.51175064]
[1755150806488,0.06,206.8,206.79,45.47175064]
[1755150807315,0.06,206.8,206.79,35.96]
[1755150807518,0.06,206.8,206.79,45.47175064]
[1755150807930,10.26175064,206.8,206.7,5.52792936]
[1755150808118,35.51175064,206.77,206.71,45.45175064]
[1755150808321,0.69,206.76,206.71,35.94]
[1755150808517,0.06,206.8,206.75,9.51175064]
[1755150808828,0.06,206.8,206.79,14.41731524]
[1755150809027,0.06,206.8,206.79,50.37731524]
[1755150809208,0.06,206.8,206.79,35.96]
[1755150809718,0.06,206.8,206.79,50.37731524]
[1755150809894,0.06,206.8,206.79,55.21313902]
[1755150810835,0.06,206.8,206.79,55.91313902]
[1755150811602,0.06,206.8,206.79,55.21313902]
[1755150811804,0.06,206.8,206.79,55.91313902]
[1755150812218,0.06,206.8,206.79,71.01935459]
[1755150813015,0.06,206.8,206.79,55.21313902]
[1755150813199,0.06,206.8,206.79,70.31935459]
[1755150813505,1e-08,206.8,206.79,19.25313902]
[1755150813705,1e-08,206.8,206.79,55.17313902]
[1755150814228,1e-08,206.8,206.79,55.19313902]
[1755150814610,1e-08,206.8,206.79,19.25313902]
[1755150814804,1e-08,206.8,206.79,14.41731524]
[1755150815006,1e-08,206.8,206.79,119.85731524]
[1755150815403,1e-08,206.8,206.75,4.4148414]
[1755150815602,0.71000001,206.8,206.76,14.41731524]
[1755150816343,0.71000001,206.8,206.7,12.09435861]
[1755150816344,14.41731524,206.78,206.72,14.41731524]
[1755150816513,14.41731524,206.76,206.67,4.83844003]
[1755150816720,18.60436556,206.75,206.68,50.37731524]
[1755150816902,3.47705032,206.74,206.7,14.41731524]
[1755150817315,3.47705032,206.73,206.71,35.96]
[1755150817838,0.71,206.72,206.71,35.96]
[1755150818126,4.18705032,206.72,206.71,35.96]
[1755150818425,3.47705032,206.72,206.71,35.96]
[1755150818917,3.47705032,206.72,206.71,50.37731524]
[1755150819236,3.47705032,206.72,206.71,35.92]
[1755150819237,18.60436556,206.72,206.71,35.92]
[1755150819533,3.47705032,206.72,206.71,35.92]
[1755150819904,3.47705032,206.72,206.71,50.33731524]
[1755150820109,3.47705032,206.72,206.71,35.92]
[1755150820530,4.18705032,206.72,206.71,35.92]
[1755150820728,26.0,206.69,206.66,0.03]
[1755150820927,26.0,206.67,206.66,0.03]
[1755150821235,44.60436556,206.67,206.66,35.99]
[1755150821618,30.18705032,206.67,206.66,35.99]
[1755150821922,18.60436556,206.67,206.66,35.99]
[1755150822432,15.10621557,206.66,206.64,0.03]
[1755150822607,18.60436556,206.65,206.52,14.41731524]
[1755150822801,18.60436556,206.65,206.49,0.71]
[1755150822802,14.41731524,206.59,206.53,14.41731524]
[1755150823009,3.47705032,206.58,206.53,14.41731524]
[1755150823231,14.41731524,206.59,206.53,14.41731524]
[1755150823232,29.47705032,206.57,206.53,14.41731524]
[1755150823431,3.47705032,206.56,206.54,36.02]
[1755150823731,3.47705032,206.55,206.54,36.02]
[1755150824229,3.49296324,206.55,206.54,36.02]
[1755150824935,3.49296324,206.55,206.54,70.8]
[1755150825113,3.49296324,206.55,206.54,119.99731524]
[1755150825316,3.49296324,206.55,206.54,105.58]
[1755150826133,29.49296324,206.55,206.54,105.58]
[1755150826427,29.49296324,206.55,206.54,69.56]
[1755150826428,18.62027848,206.55,206.54,69.56]
[1755150826648,18.62027848,206.55,206.54,105.54]
[1755150828028,33.72649405,206.55,206.54,105.54]
[1755150828422,18.62027848,206.55,206.54,105.54]
[1755150828735,44.62027848,206.55,206.54,105.54]
[1755150829039,18.62027848,206.55,206.54,105.54]
[1755150829914,30.20296324,206.55,206.54,105.54]
[1755150830115,44.62027848,206.55,206.54,105.54]
[1755150830715,39.73975315,206.55,206.54,105.54]
[1755150831143,3.49296324,206.55,206.54,105.54]
[1755150831446,15.10621557,206.61,206.54,105.54]
[1755150831447,9.53678991,206.56,206.54,105.54]
[1755150831617,15.10621557,206.61,206.54,105.54]
[1755150831618,13.7298146,206.55,206.54,105.54]
[1755150832342,9.53678991,206.56,206.54,105.54]
[1755150832843,9.53678991,206.55,206.54,105.54]
[1755150833030,13.72624073,206.55,206.54,105.54]
[1755150833220,9.53678991,206.56,206.54,105.54]
[1755150833422,9.53678991,206.55,206.54,105.54]
[1755150833939,17.6219566,206.61,206.54,105.54]
[1755150834249,9.53678991,206.55,206.54,69.56]
[1755150834414,10.24678991,206.55,206.54,105.48]
[1755150835926,13.72074401,206.55,206.54,105.48]
[1755150836525,10.24678991,206.55,206.54,105.48]
[1755150837136,25.35300548,206.55,206.54,105.48]
[1755150837336,28.8246373,206.55,206.54,105.48]
[1755150837821,35.53678991,206.55,206.54,105.48]
[1755150838522,51.35300548,206.55,206.54,69.56]
[1755150838739,51.35300548,206.55,206.54,105.48]
[1755150838943,26.0,206.55,206.54,105.48]
[1755150839445,35.53678991,206.55,206.54,105.48]
[1755150839650,36.24678991,206.55,206.54,105.48]
[1755150839947,51.35300548,206.55,206.54,69.56]
[1755150840145,54.82410102,206.55,206.54,105.5]
[1755150840318,0.7,206.59,206.54,105.5]
[1755150840522,2.51574103,206.61,206.55,9.53678991]
[1755150840523,12.05253094,206.61,206.55,9.53678991]
[1755150840753,12.05253094,206.61,206.56,35.94]
[1755150841051,9.53678991,206.61,206.56,35.94]
[1755150841222,9.53678991,206.59,206.56,35.94]
[1755150841547,9.53678991,206.57,206.56,35.94]
[1755150841871,26.0,206.6,206.56,35.94]
[1755150842039,9.53678991,206.58,206.56,35.94]
[1755150842219,0.7,206.58,206.56,35.94]
[1755150842544,9.53678991,206.58,206.56,35.94]
[1755150842717,9.53678991,206.57,206.56,35.94]
[1755150843122,26.0,206.57,206.56,35.94]
[1755150843430,9.53678991,206.62,206.56,35.94]
[1755150843635,9.53678991,206.6,206.56,35.94]
[1755150844146,26.0,206.57,206.56,35.94]
[1755150844366,26.0,206.57,206.56,36.66]
[1755150844853,10.23678991,206.63,206.56,46.19678991]
[1755150845028,0.06,206.64,206.58,9.53678991]
[1755150845223,9.59678991,206.64,206.59,35.92]
[1755150845418,0.06,206.64,206.6,0.72]
[1755150845650,0.06,206.64,206.61,35.9]
[1755150847050,26.0,206.62,206.61,35.9]